bitfinex/quotes_SOLUSD_20220207
["timestamp","ask_amount","ask_price","bid_price","bid_amount"]
[1644212430081,54.73361082,118.63,118.54,6.0]
[1644212430282,66.87361082,118.63,118.5,23.82068356]
[1644212430485,93.94702977,118.63,118.51,23.333]
[1644212430982,103.30671082,118.63,118.52,36.62578594]
[1644212431181,103.30671082,118.63,118.54,40.93077186]
[1644212431397,105.41232172,118.63,118.54,40.93077186]
[1644212431997,103.30671082,118.63,118.54,40.93077186]
[1644212433001,103.30671082,118.63,118.53,23.333]
[1644212434000,103.30671082,118.63,118.54,39.95729866]
[1644212434001,104.49481887,118.63,118.54,39.95729866]
[1644212435403,106.60042977,118.63,118.54,39.95729866]
[1644212437102,106.60042977,118.63,118.53,23.333]
[1644212437304,1.18810805,118.62,118.53,23.333]
[1644212437503,25.98400805,118.61,118.5,22.6248]
[1644212437705,31.98400805,118.61,118.51,23.6698]
[1644212438107,33.69771398,118.6,118.52,38.87481812]
[1644212438504,39.69771398,118.6,118.52,38.87481812]
[1644212439612,39.69771398,118.6,118.52,44.87481812]
[1644212440007,52.35421398,118.6,118.52,44.87481812]
[1644212440815,52.35421398,118.6,118.52,38.87481812]
[1644212441109,65.68232203,118.6,118.51,23.6698]
[1644212441310,67.78793293,118.6,118.51,23.6698]
[1644212441909,67.78793293,118.6,118.52,48.65306888]
[1644212442111,66.59982488,118.6,118.52,48.65306888]
[1644212443113,64.49421398,118.6,118.52,48.65306888]
[1644212443512,64.49421398,118.6,118.5,22.8748]
[1644212443711,54.45982488,118.6,118.5,22.8748]
[1644212443911,39.69771398,118.6,118.5,22.8748]
[1644212444112,6.0,118.6,118.5,28.8748]
[1644212444512,19.84240805,118.62,118.5,28.8748]
[1644212444713,19.84240805,118.62,118.51,23.4313]
[1644212444913,6.0,118.62,118.51,25.37037733]
[1644212445113,29.7797,118.63,118.52,42.24831444]
[1644212445314,29.7797,118.63,118.52,56.32739177]
[1644212445613,29.7797,118.63,118.54,42.06533833]
[1644212446213,6.0,118.63,118.54,42.06533833]
[1644212446613,48.62350982,118.64,118.54,42.06533833]
[1644212447213,48.62350982,118.64,118.54,54.71353833]
[1644212447618,48.62350982,118.64,118.54,60.71353833]
[1644212447816,1.18810805,118.65,118.54,62.65261566]
[1644212448017,1.18810805,118.66,118.55,22.5347]
[1644212448319,6.0,118.65,118.55,22.5347]
[1644212448516,7.18810805,118.66,118.55,28.5347]
[1644212448917,47.26396952,118.65,118.56,46.02772023]
[1644212449118,54.45207757,118.65,118.56,46.02772023]
[1644212449318,66.59207757,118.65,118.55,22.5347]
[1644212449719,1.18810805,118.64,118.55,22.5347]
[1644212450123,7.18810805,118.64,118.55,22.5347]
[1644212450422,34.42416747,118.63,118.55,69.7559205]
[1644212450620,40.42416747,118.63,118.55,69.7559205]
[1644212452723,6.0,118.63,118.55,69.7559205]
[1644212452922,6.0,118.64,118.55,69.7559205]
[1644212453122,1.18810805,118.65,118.55,75.7559205]
[1644212453523,1.18810805,118.66,118.55,75.7559205]
[1644212453723,40.79238919,118.65,118.55,75.7559205]
[1644212453924,41.98049724,118.65,118.55,75.7559205]
[1644212454526,47.98049724,118.65,118.55,22.5347]
[1644212454726,62.22610814,118.65,118.55,22.5347]
[1644212454927,1.18810805,118.63,118.55,22.5347]
[1644212455128,19.84170805,118.63,118.55,22.5347]
[1644212455328,21.94731895,118.63,118.55,22.5347]
[1644212455528,35.25326383,118.62,118.55,22.5347]
[1644212455726,41.25326383,118.62,118.55,22.5347]
[1644212456127,41.50326383,118.62,118.55,22.5347]
[1644212456928,41.50326383,118.62,118.56,43.41064135]
[1644212457530,6.25,118.62,118.56,43.41064135]
[1644212457729,0.25,118.62,118.56,43.66064135]
[1644212457929,6.25,118.62,118.56,43.66064135]
[1644212458532,0.25,118.62,118.56,43.66064135]
[1644212458730,6.0,118.62,118.56,43.66064135]
[1644212459332,54.23389375,118.63,118.56,43.66064135]
[1644212460633,54.48389375,118.63,118.56,43.66064135]
[1644212461734,6.0,118.63,118.56,43.66064135]
[1644212461935,6.0,118.65,118.56,49.66064135]
[1644212462135,6.68810805,118.66,118.56,64.24613163]
[1644212462334,6.0,118.66,118.57,34.8986]
[1644212462534,6.0,118.67,118.57,34.8986]
[1644212462735,6.0,118.67,118.58,37.98911048]
[1644212462934,73.4417271,118.68,118.59,4.214]
[1644212463135,73.4417271,118.68,118.6,36.46163229]
[1644212463335,50.4380271,118.68,118.6,36.71163229]
[1644212463537,50.6880271,118.68,118.6,36.71163229]
[1644212464136,50.4380271,118.68,118.6,36.71163229]
[1644212464337,50.6880271,118.68,118.6,36.71163229]
[1644212465357,50.6880271,118.68,118.59,24.4204]
[1644212465560,52.793638,118.68,118.59,6.0]
[1644212465759,64.933638,118.68,118.58,23.5796]
[1644212465958,69.147638,118.68,118.58,23.5796]
[1644212466959,81.796238,118.68,118.57,38.50482671]
[1644212467164,102.06636916,118.68,118.54,24.564]
[1644212467359,24.5733,118.67,118.54,24.564]
[1644212467563,16.355,118.66,118.54,24.814]
[1644212467859,18.7106109,118.66,118.54,24.564]
[1644212468059,40.0989086,118.65,118.55,37.34873015]
[1644212468259,12.14,118.64,118.55,37.34873015]
[1644212468459,39.90995743,118.63,118.55,37.34873015]
[1644212468662,58.56385743,118.63,118.55,37.34873015]
[1644212468858,58.81385743,118.63,118.55,37.34873015]
[1644212470960,58.81385743,118.63,118.54,24.564]
[1644212471159,58.81385743,118.63,118.54,24.814]
[1644212471363,60.91946833,118.63,118.54,24.814]
[1644212472964,60.91946833,118.63,118.55,38.70257213]
[1644212473262,58.81385743,118.63,118.55,38.70257213]
[1644212474265,58.81385743,118.63,118.54,24.814]
[1644212475975,60.91946833,118.63,118.54,24.814]
[1644212478672,60.91946833,118.63,118.55,44.32823218]
[1644212478873,58.81385743,118.63,118.55,44.32823218]
[1644212479272,60.91946833,118.63,118.55,44.32823218]
[1644212480373,60.91946833,118.63,118.54,24.814]
[1644212480573,73.05946833,118.63,118.54,24.814]
[1644212482174,73.05946833,118.63,118.5,36.974]
[1644212482374,73.05946833,118.63,118.49,24.4857]
[1644212482375,23.0425,118.62,118.49,24.4857]
[1644212482576,12.659,118.59,118.49,24.4857]
[1644212482775,25.049,118.59,118.49,24.4857]
[1644212482975,33.1546109,118.59,118.49,24.4857]
[1644212483176,40.76275715,118.58,118.5,43.93041352]
[1644212483676,49.11836805,118.58,118.5,43.93041352]
[1644212484076,49.11836805,118.58,118.46,24.2933]
[1644212485078,49.11836805,118.58,118.47,40.24708092]
[1644212485079,61.77736805,118.58,118.47,40.24708092]
[1644212485279,61.77736805,118.58,118.47,40.49708092]
[1644212485980,61.77736805,118.58,118.49,38.83681608]
[1644212486582,12.14,118.57,118.49,38.83681608]
[1644212486782,54.32976765,118.56,118.49,38.83681608]
[1644212487182,72.71976765,118.56,118.49,38.83681608]
[1644212488388,72.71976765,118.56,118.49,39.08681608]
[1644212488787,72.71976765,118.56,118.49,38.83681608]
[1644212489386,69.21976765,118.56,118.49,38.83681608]
[1644212490689,63.21976765,118.56,118.49,38.83681608]
[1644212491888,12.39,118.56,118.49,38.83681608]
[1644212492088,18.39,118.56,118.49,39.08681608]
[1644212492389,29.6627,118.61,118.49,45.08681608]
[1644212492589,41.5946,118.61,118.5,23.5867]
[1644212492790,41.1249592,118.6,118.51,39.88982874]
[1644212492989,29.7046,118.61,118.51,39.88982874]
[1644212493189,29.7046,118.61,118.52,23.5867]
[1644212493388,23.7046,118.61,118.52,23.5867]
[1644212493589,25.8102109,118.61,118.52,23.8367]
[1644212493994,44.27664395,118.6,118.53,43.56405746]
[1644212494191,44.52664395,118.6,118.53,43.81405746]
[1644212494390,44.52664395,118.6,118.53,43.56405746]
[1644212494590,50.52664395,118.6,118.53,43.56405746]
[1644212494790,50.52664395,118.6,118.52,23.5867]
[1644212494991,63.18354395,118.6,118.49,24.2778]
[1644212495193,99.18854395,118.6,118.49,24.2778]
[1644212495391,101.29415485,118.6,118.49,24.2778]
[1644212495791,101.29415485,118.6,118.5,34.25559481]
[1644212496190,99.18854395,118.6,118.5,34.50559481]
[1644212496791,18.39,118.6,118.5,34.50559481]
[1644212496991,18.39,118.6,118.51,24.9493]
[1644212497792,65.7625703,118.6,118.52,43.89172431]
[1644212498792,65.7625703,118.6,118.52,44.14172431]
[1644212499016,65.7625703,118.6,118.52,43.89172431]
[1644212499218,18.39,118.6,118.52,43.89172431]
[1644212500221,18.39,118.6,118.52,44.14172431]
[1644212500418,38.45709169,118.59,118.52,43.89172431]
[1644212500619,44.45709169,118.59,118.52,43.89172431]
[1644212500919,44.70709169,118.59,118.52,43.89172431]
[1644212501122,6.25,118.59,118.52,43.89172431]
[1644212501722,6.25,118.59,118.52,44.14172431]
[1644212502425,35.30878384,118.6,118.52,44.14172431]
[1644212502623,6.0,118.59,118.52,44.14172431]
[1644212503225,6.0,118.6,118.52,44.14172431]
[1644212503624,29.4546,118.61,118.52,44.14172431]
[1644212504025,6.0,118.61,118.52,44.14172431]
[1644212504228,6.0,118.61,118.52,50.14172431]
[1644212504427,6.0,118.63,118.52,62.28172431]
[1644212504631,55.26978326,118.64,118.53,24.6539]
[1644212504826,55.26978326,118.64,118.54,47.75694771]
[1644212505027,8.1056109,118.64,118.55,24.6539]
[1644212505231,8.1056109,118.64,118.55,24.9039]
[1644212506033,8.1056109,118.64,118.56,41.77504441]
[1644212506034,46.64474301,118.63,118.56,41.77504441]
[1644212506228,46.64474301,118.63,118.56,42.02504441]
[1644212506428,52.64474301,118.63,118.56,42.02504441]
[1644212506628,6.0,118.63,118.56,42.02504441]
[1644212506830,41.1707,118.67,118.56,42.02504441]
[1644212507028,30.8147,118.67,118.57,24.2098]
[1644212507228,31.0647,118.67,118.57,24.4598]
[1644212507632,40.52425349,118.66,118.58,38.47422111]
[1644212507829,40.77425349,118.66,118.57,24.2098]
[1644212508029,2.1056109,118.65,118.53,22.6395]
[1644212508329,12.14,118.64,118.53,22.6395]
[1644212508529,4.216,118.63,118.53,22.8895]
[1644212508828,0.25,118.63,118.54,38.56062701]
[1644212509029,6.25,118.63,118.54,38.56062701]
[1644212509230,6.25,118.63,118.56,44.2450626]
[1644212509629,6.25,118.63,118.56,44.4950626]
[1644212510329,0.25,118.63,118.56,44.4950626]
[1644212510529,6.25,118.63,118.56,44.4950626]
[1644212510730,67.97304061,118.65,118.56,44.4950626]
[1644212511131,74.22304061,118.65,118.56,44.4950626]
[1644212511532,29.425,118.65,118.56,44.4950626]
[1644212512531,65.97231959,118.65,118.56,44.4950626]
[1644212513735,68.07793049,118.65,118.56,44.4950626]
[1644212514333,12.14,118.64,118.55,23.7492]
[1644212514536,4.216,118.63,118.5,24.8965]
[1644212514833,12.6555,118.61,118.5,24.8965]
[1644212515035,12.14,118.6,118.5,24.8965]
[1644212515332,41.35842949,118.59,118.5,67.22587885]
[1644212515739,47.60842949,118.59,118.5,67.47587885]
[1644212517039,60.26682949,118.59,118.5,67.47587885]
[1644212518238,18.9084,118.59,118.5,67.47587885]
[1644212519438,34.6616752,118.58,118.5,67.47587885]
[1644212519640,40.6616752,118.58,118.5,67.47587885]
[1644212519839,40.6616752,118.58,118.5,42.57937885]
[1644212519840,40.9116752,118.58,118.5,42.57937885]
[1644212520944,31.0491,118.58,118.5,42.57937885]
[1644212521545,6.25,118.58,118.5,42.57937885]
[1644212521746,28.9672,118.64,118.5,44.50730775]
[1644212521946,39.08076939,118.63,118.52,46.64895574]
[1644212522348,39.33076939,118.63,118.53,1.9279289]
[1644212522545,39.33076939,118.63,118.53,23.485]
[1644212522546,64.12466939,118.63,118.53,23.485]
[1644212522747,66.23028029,118.63,118.52,46.64895574]
[1644212522949,72.43838029,118.63,118.52,52.64895574]
[1644212523147,64.12466939,118.63,118.53,23.485]
[1644212523347,63.87466939,118.63,118.54,48.24976764]
[1644212523548,39.08076939,118.63,118.54,48.24976764]
[1644212523749,45.08076939,118.63,118.54,50.42769654]
[1644212523949,45.08076939,118.63,118.55,1.9279289]
[1644212524151,45.08076939,118.63,118.56,46.33253198]
[1644212524351,45.08076939,118.63,118.56,46.58253198]
[1644212524753,45.33076939,118.63,118.56,46.58253198]
[1644212525376,45.33076939,118.63,118.56,0.25]
[1644212525577,45.33076939,118.63,118.53,23.735]
[1644212525781,47.43638029,118.63,118.51,22.8934]
[1644212525978,12.14,118.62,118.51,22.8934]
[1644212526177,18.14,118.62,118.51,23.1434]
[1644212526380,39.85055541,118.61,118.52,35.9636347]
[1644212526577,6.0,118.61,118.52,59.4423347]
[1644212526778,6.25,118.61,118.52,59.6923347]
[1644212526977,6.0,118.61,118.52,61.6202636]
[1644212527179,6.0,118.61,118.52,67.6202636]
[1644212527386,6.0,118.63,118.52,71.8372636]
[1644212527679,6.0,118.65,118.54,44.72394785]
[1644212527879,2.1056109,118.67,118.55,36.959]
[1644212528079,14.52207278,118.7,118.55,85.2753289]
[1644212528378,14.52207278,118.7,118.56,1.9279289]
[1644212528379,12.14,118.7,118.56,1.9279289]
[1644212528579,12.14,118.7,118.57,16.354]
[1644212528780,39.14117468,118.69,118.58,68.05433599]
[1644212528981,39.14117468,118.69,118.58,69.98226489]
[1644212529178,45.14117468,118.69,118.59,1.9279289]
[1644212529578,45.14117468,118.69,118.6,40.74070316]
[1644212529579,59.38678558,118.69,118.6,40.74070316]
[1644212529780,59.63678558,118.69,118.6,40.74070316]
[1644212529983,74.78814672,118.69,118.6,40.74070316]
[1644212530782,87.43624672,118.69,118.6,40.99070316]
[1644212530986,85.33063582,118.69,118.6,40.99070316]
[1644212531183,85.33063582,118.69,118.6,40.74070316]
[1644212531583,85.08063582,118.69,118.6,40.74070316]
[1644212532485,69.92927468,118.69,118.6,40.74070316]
[1644212532683,69.92927468,118.69,118.6,40.99070316]
[1644212532684,30.7881,118.69,118.6,40.99070316]
[1644212532883,18.14,118.69,118.6,40.99070316]
[1644212533083,6.0,118.69,118.6,53.29170316]
[1644212533486,53.3801,118.71,118.6,53.29170316]
[1644212533684,42.55320784,118.7,118.61,22.9677]
[1644212533883,42.55320784,118.7,118.62,48.36994403]
[1644212534083,48.80320784,118.7,118.62,48.36994403]
[1644212534989,61.44980784,118.7,118.62,48.36994403]
[1644212535387,36.37811696,118.68,118.62,48.36994403]
[1644212535686,42.15363949,118.68,118.59,23.3831]
[1644212535886,42.40363949,118.68,118.59,23.6331]
[1644212536088,12.6466,118.7,118.59,23.6331]
[1644212536287,44.31976114,118.72,118.6,24.9174289]
[1644212536288,27.79556114,118.72,118.6,24.9174289]
[1644212536489,112.5,118.74,118.61,4.213]
[1644212536690,112.5,118.74,118.62,23.346]
[1644212536892,112.5,118.74,118.63,4.213]
[1644212537089,37.37470397,118.73,118.64,47.02652489]
[1644212537293,37.37470397,118.73,118.64,34.88652489]
[1644212537492,39.73031487,118.73,118.64,34.88652489]
[1644212537691,2.1056109,118.72,118.64,34.88652489]
[1644212538092,6.0,118.72,118.64,34.88652489]
[1644212538290,40.16363499,118.71,118.64,34.88652489]
[1644212538491,40.16363499,118.71,118.64,35.13652489]
[1644212538692,6.0,118.71,118.64,35.13652489]
[1644212539093,8.1056109,118.73,118.64,35.13652489]
[1644212539293,2.3556109,118.73,118.64,57.68992489]
[1644212539493,8.3556109,118.73,118.64,57.68992489]
[1644212539695,40.74443762,118.72,118.64,57.68992489]
[1644212540097,46.99443762,118.72,118.64,57.68992489]
[1644212541901,46.99443762,118.72,118.6,12.14]
[1644212542103,46.99443762,118.72,118.61,23.5953]
[1644212542104,73.88454852,118.72,118.61,23.5953]
[1644212542301,73.88454852,118.72,118.61,23.8453]
[1644212543002,73.88454852,118.72,118.62,43.09277428]
[1644212543201,73.88454852,118.72,118.62,43.34277428]
[1644212547526,73.88454852,118.72,118.62,43.09277428]
[1644212547527,80.09264852,118.72,118.62,43.09277428]
[1644212548127,77.98703762,118.72,118.62,43.09277428]
[1644212548327,80.09264852,118.72,118.62,43.09277428]
[1644212550435,80.09264852,118.72,118.57,24.4501]
[1644212550634,12.6493,118.67,118.58,23.2478]
[1644212550834,12.8993,118.67,118.58,23.4978]
[1644212551032,18.8993,118.67,118.58,23.4978]
[1644212551433,34.32236273,118.66,118.59,46.49622745]
[1644212551632,40.32236273,118.66,118.59,46.49622745]
[1644212551835,40.57236273,118.66,118.59,46.49622745]
[1644212554135,6.25,118.66,118.59,46.49622745]
[1644212554336,6.25,118.66,118.59,46.74622745]
[1644212554535,0.25,118.66,118.58,23.2478]
[1644212554736,30.7908,118.66,118.58,23.2478]
[1644212555136,33.1464109,118.66,118.58,23.2478]
[1644212555538,46.26941099,118.65,118.58,23.2478]
[1644212555736,59.17141099,118.65,118.58,23.2478]
[1644212555936,67.27702189,118.65,118.58,23.2478]
[1644212556136,67.27702189,118.65,118.55,1.9279289]
[1644212556336,79.41702189,118.65,118.53,24.4147]
[1644212557139,79.41702189,118.65,118.54,43.19062366]
[1644212557744,79.41702189,118.65,118.56,43.95065354]
[1644212558242,79.41702189,118.65,118.56,44.20065354]
[1644212558441,77.31141099,118.65,118.56,44.20065354]
[1644212558642,65.17141099,118.65,118.56,43.95065354]
[1644212558841,65.17141099,118.65,118.56,44.20065354]
[1644212560545,65.17141099,118.65,118.56,43.95065354]
[1644212560752,77.31141099,118.65,118.56,43.95065354]
[1644212560947,77.31141099,118.65,118.56,44.20065354]
[1644212563282,31.042,118.65,118.56,44.20065354]
[1644212565080,18.14,118.65,118.56,44.20065354]
[1644212565484,6.0,118.65,118.56,44.20065354]
[1644212565789,6.0,118.67,118.56,44.20065354]
[1644212565982,6.0,118.67,118.57,23.0754]
[1644212566183,6.0,118.68,118.58,35.91632053]
[1644212566583,78.02117832,118.7,118.58,36.16632053]
[1644212567083,78.02117832,118.7,118.6,44.20376792]
[1644212567284,65.69777832,118.7,118.6,44.45376792]
[1644212567484,65.69777832,118.7,118.61,23.2773]
[1644212567685,67.80338922,118.7,118.62,37.23530642]
[1644212568987,84.66298922,118.7,118.62,37.23530642]
[1644212569188,80.44998922,118.7,118.62,37.23530642]
[1644212569588,80.44998922,118.7,118.57,23.8703]
[1644212569793,4.214,118.69,118.57,23.8703]
[1644212569989,12.652,118.66,118.57,23.8703]
[1644212570193,30.792,118.66,118.57,23.8703]
[1644212570390,31.042,118.66,118.57,23.8703]
[1644212570592,33.50467991,118.65,118.57,23.8703]
[1644212570792,50.10967991,118.65,118.57,23.8703]
[1644212570991,2.1056109,118.64,118.57,23.8703]
[1644212571189,34.32056404,118.63,118.57,23.8703]
[1644212571390,34.32056404,118.63,118.57,48.7194]
[1644212571589,40.57056404,118.63,118.57,48.7194]
[1644212572390,6.25,118.63,118.58,44.21121195]
[1644212572589,0.25,118.63,118.58,44.21121195]
[1644212572788,5.5,118.63,118.58,44.21121195]
[1644212572990,18.9029,118.64,118.58,44.21121195]
[1644212573391,55.43393537,118.64,118.58,44.21121195]
[1644212576094,18.9029,118.64,118.58,44.21121195]
[1644212578496,6.0,118.64,118.58,44.21121195]
[1644212578697,18.6506,118.66,118.58,44.46121195]
[1644212578899,6.0,118.66,118.58,44.46121195]
[1644212579097,52.336,118.67,118.58,44.46121195]
[1644212579497,90.68602622,118.67,118.58,44.46121195]
[1644212579696,90.93602622,118.67,118.58,44.46121195]
[1644212580096,52.586,118.67,118.59,23.258]
[1644212581099,6.0,118.67,118.6,42.53668874]
[1644212581297,12.6463,118.7,118.6,42.53668874]
[1644212581503,36.9879,118.71,118.6,42.78668874]
[1644212581898,24.286,118.71,118.6,42.78668874]
[1644212582100,24.286,118.71,118.61,23.5725]
[1644212582299,24.536,118.71,118.61,23.8225]
[1644212582499,1.19246093,118.7,118.62,46.64618545]
[1644212582701,7.19246093,118.7,118.62,46.89618545]
[1644212584002,7.44246093,118.7,118.62,46.89618545]
[1644212584801,6.25,118.7,118.62,46.89618545]
[1644212585002,36.12424932,118.69,118.62,46.64618545]
[1644212585204,42.37424932,118.69,118.61,23.5725]
[1644212585402,2.1056109,118.68,118.57,23.8703]
[1644212585602,20.2456109,118.68,118.58,24.9127]
[1644212585802,20.4956109,118.68,118.58,24.9127]
[1644212586001,2.1056109,118.67,118.58,24.9127]
[1644212586202,45.77220127,118.67,118.59,44.18172922]
[1644212586512,8.3556109,118.67,118.59,44.18172922]
[1644212586702,8.3556109,118.67,118.59,44.43172922]
[1644212586901,6.25,118.67,118.59,44.43172922]
[1644212587103,0.25,118.67,118.59,44.18172922]
[1644212587305,43.30887368,118.67,118.59,44.43172922]
[1644212587503,43.05887368,118.67,118.59,44.43172922]
[1644212587704,43.30887368,118.67,118.59,44.43172922]
[1644212589808,43.30887368,118.67,118.59,44.18172922]
[1644212590107,45.41448458,118.67,118.59,44.18172922]
[1644212590707,43.30887368,118.67,118.59,44.43172922]
[1644212591108,42.4108126,118.67,118.59,44.43172922]
[1644212591912,42.1608126,118.67,118.59,44.43172922]
[1644212592909,42.1608126,118.67,118.59,44.18172922]
[1644212593311,42.4108126,118.67,118.59,44.18172922]
[1644212594315,57.1663235,118.67,118.58,24.9127]
[1644212595015,58.35878443,118.67,118.58,24.9127]
[1644212595415,36.19930532,118.65,118.58,24.9127]
[1644212595616,42.19930532,118.65,118.58,24.9127]
[1644212595816,42.44930532,118.65,118.58,24.9127]
[1644212596818,42.44930532,118.65,118.58,71.5797561]
[1644212597018,55.10120532,118.65,118.58,71.5797561]
[1644212597218,55.10120532,118.65,118.58,24.9127]
[1644212599622,55.10120532,118.65,118.59,43.77614958]
[1644212600625,55.10120532,118.65,118.58,24.9127]
[1644212601929,42.44930532,118.65,118.59,40.91669147]
[1644212603529,6.0,118.65,118.59,40.91669147]
[1644212603730,34.9678,118.66,118.59,40.91669147]
[1644212603731,18.14,118.66,118.59,40.91669147]
[1644212603951,6.0,118.66,118.59,40.91669147]
[1644212604151,32.67236093,118.67,118.59,40.91669147]
[1644212604351,31.4799,118.67,118.59,40.91669147]
[1644212604554,79.20403512,118.67,118.59,40.91669147]
[1644212604754,79.45403512,118.67,118.59,40.91669147]
[1644212605351,18.8994,118.67,118.59,40.91669147]
[1644212605753,18.8994,118.67,118.59,41.16669147]
[1644212606153,6.25,118.67,118.59,41.16669147]
[1644212606357,6.0,118.67,118.59,41.16669147]
[1644212606655,36.07994227,118.67,118.59,41.16669147]
[1644212607056,42.07994227,118.67,118.59,41.16669147]
[1644212607654,42.32994227,118.67,118.59,41.16669147]
[1644212609458,42.32994227,118.67,118.59,40.91669147]
[1644212609858,42.32994227,118.67,118.59,41.16669147]
[1644212610057,42.32994227,118.67,118.59,40.91669147]
[1644212610263,58.2775141,118.67,118.59,40.91669147]
[1644212610860,70.4175141,118.67,118.59,40.91669147]
[1644212611062,67.11944227,118.67,118.59,41.16669147]
[1644212611460,67.11944227,118.67,118.59,40.91669147]
[1644212612161,67.11944227,118.67,118.59,41.16669147]
[1644212612358,68.3119032,118.67,118.59,41.16669147]
[1644212612560,68.3119032,118.67,118.59,40.91669147]
[1644212613361,7.19246093,118.67,118.59,41.16669147]
[1644212613561,6.0,118.67,118.59,41.16669147]
[1644212613961,7.19246093,118.68,118.59,41.16669147]
[1644212614161,7.19246093,118.68,118.6,24.5943]
[1644212614360,7.19246093,118.68,118.61,40.90082374]
[1644212614561,6.0,118.68,118.61,40.90082374]
[1644212614763,6.0,118.68,118.61,41.15082374]
[1644212615062,42.20551864,118.69,118.61,41.15082374]
[1644212615762,42.45551864,118.69,118.61,41.15082374]
[1644212615969,36.45551864,118.69,118.61,41.15082374]
[1644212616263,0.25,118.69,118.61,41.15082374]
[1644212616464,0.25,118.69,118.62,23.4265]
[1644212616667,1.44246093,118.7,118.62,23.4265]
[1644212616964,1.19246093,118.7,118.62,23.6765]
[1644212617164,7.44246093,118.7,118.62,23.6765]
[1644212617372,35.33401811,118.69,118.62,23.4265]
[1644212617566,41.33401811,118.69,118.58,1.2013532]
[1644212617764,2.1056109,118.68,118.58,24.9842]
[1644212617965,25.86017183,118.68,118.57,23.8703]
[1644212618164,1.19246093,118.67,118.57,23.8703]
[1644212618364,54.06234324,118.66,118.58,43.60573284]
[1644212618566,72.71334324,118.66,118.58,43.60573284]
[1644212618767,75.06895414,118.66,118.58,43.60573284]
[1644212618965,2.1056109,118.65,118.58,43.60573284]
[1644212619168,36.78450409,118.64,118.58,43.60573284]
[1644212619365,6.25,118.65,118.58,43.60573284]
[1644212619766,0.25,118.65,118.58,43.60573284]
[1644212619972,6.25,118.65,118.58,43.60573284]
[1644212621166,0.25,118.65,118.58,43.60573284]
[1644212621369,45.78263157,118.66,118.58,43.60573284]
[1644212622967,45.78263157,118.66,118.58,43.85573284]
[1644212624972,6.25,118.66,118.58,43.85573284]
[1644212625172,0.25,118.66,118.58,43.85573284]
[1644212625370,6.25,118.66,118.59,24.334]
[1644212625571,6.0,118.66,118.59,24.334]
[1644212625770,6.25,118.66,118.59,24.584]
[1644212625970,46.85607236,118.66,118.6,41.74661339]
[1644212626170,52.85607236,118.66,118.6,41.74661339]
[1644212627270,6.25,118.66,118.6,41.74661339]
[1644212628073,1.19246093,118.68,118.6,41.99661339]
[1644212628274,0.25,118.68,118.6,43.92028561]
[1644212628475,6.25,118.68,118.62,41.21906627]
[1644212628874,0.25,118.68,118.62,41.46906627]
[1644212629074,6.25,118.68,118.62,41.46906627]
[1644212629475,6.25,118.68,118.62,41.21906627]
[1644212630279,0.25,118.68,118.62,41.21906627]
[1644212630478,39.38950857,118.69,118.62,41.21906627]
[1644212630680,45.38950857,118.69,118.62,41.21906627]
[1644212630878,45.63950857,118.69,118.62,41.21906627]
[1644212631280,6.25,118.69,118.62,41.21906627]
[1644212631480,6.25,118.69,118.62,41.46906627]
[1644212631678,6.25,118.69,118.62,41.21906627]
[1644212632279,41.87747534,118.69,118.62,41.21906627]
[1644212632480,47.87747534,118.69,118.62,41.21906627]
[1644212633282,1.19246093,118.7,118.62,41.46906627]
[1644212633580,28.9973,118.72,118.62,49.39273849]
[1644212633581,7.19246093,118.72,118.62,49.39273849]
[1644212633782,1.19246093,118.72,118.62,61.53273849]
[1644212633988,1.19246093,118.72,118.63,24.8302]
[1644212634182,1.19246093,118.74,118.64,44.12182469]
[1644212634381,1.19246093,118.74,118.66,36.13765929]
[1644212634781,1.19246093,118.77,118.66,36.38765929]
[1644212634981,1.19246093,118.77,118.67,18.27467222]
[1644212635181,1.19246093,118.77,118.67,20.06367222]
[1644212635384,45.06587147,118.76,118.68,39.74376847]
[1644212635583,51.06587147,118.76,118.68,62.46966847]
[1644212635781,6.0,118.76,118.68,62.71966847]
[1644212636581,19.77486093,118.78,118.68,62.71966847]
[1644212636781,41.3823948,118.77,118.68,62.71966847]
[1644212637185,47.3823948,118.77,118.68,62.71966847]
[1644212637582,47.6323948,118.77,118.68,62.71966847]
[1644212637984,47.3823948,118.77,118.68,62.71966847]
[1644212639183,47.3823948,118.77,118.68,62.46966847]
[1644212639384,47.3823948,118.77,118.68,62.71966847]
[1644212640187,47.6323948,118.77,118.68,62.71966847]